bitfinex-derivatives/quotes_SOLF0:USTF0_20260208
["timestamp","ask_amount","ask_price","bid_price","bid_amount"]
[1770591239805,8.59336606,86.898,86.864,22.52341845]
[1770591239998,21.87067477,86.902,86.864,22.52341845]
[1770591240197,8.59509169,86.901,86.864,22.52341845]
[1770591240401,8.59509169,86.9,86.864,22.52341845]
[1770591240600,8.59509169,86.899,86.864,22.52341845]
[1770591240908,8.59509169,86.898,86.864,22.52341845]
[1770591241106,8.59509169,86.897,86.864,22.52341845]
[1770591241308,21.87067477,86.902,86.864,22.52341845]
[1770591241608,8.59889018,86.901,86.864,22.52341845]
[1770591241805,8.59889018,86.9,86.864,22.52341845]
[1770591242005,8.59889018,86.899,86.864,22.52341845]
[1770591242310,8.59889018,86.898,86.864,22.52341845]
[1770591242502,8.59889018,86.897,86.864,22.52341845]
[1770591242701,8.59889018,86.896,86.864,22.52341845]
[1770591242904,21.87067477,86.902,86.864,22.52341845]
[1770591243099,8.60105908,86.901,86.864,22.52341845]
[1770591243306,8.60105908,86.9,86.864,22.52341845]
[1770591243506,8.60105908,86.899,86.864,22.52341845]
[1770591243809,8.60105908,86.898,86.864,22.52341845]
[1770591244011,8.60105908,86.897,86.864,22.52341845]
[1770591244307,21.87067477,86.902,86.864,22.52341845]
[1770591244308,8.60669604,86.896,86.864,22.52341845]
[1770591244608,8.60669604,86.895,86.864,22.52341845]
[1770591244811,8.60669604,86.894,86.864,22.52341845]
[1770591245013,8.60669604,86.893,86.864,22.52341845]
[1770591245210,21.87067477,86.902,86.864,22.52341845]
[1770591245402,8.61075016,86.901,86.864,22.52341845]
[1770591245603,8.61075016,86.9,86.864,22.52341845]
[1770591245799,8.61075016,86.899,86.864,22.52341845]
[1770591246006,8.61075016,86.898,86.864,22.52341845]
[1770591246310,8.61075016,86.897,86.864,22.52341845]
[1770591246508,8.61075016,86.896,86.864,22.52341845]
[1770591246707,8.61075016,86.895,86.864,22.52341845]
[1770591246908,8.61075016,86.894,86.864,22.52341845]
[1770591247103,8.61075016,86.893,86.864,22.52341845]
[1770591247310,8.61075016,86.892,86.864,22.52341845]
[1770591247510,8.61075016,86.891,86.864,22.52341845]
[1770591247709,8.61075016,86.89,86.864,22.52341845]
[1770591247908,8.61075016,86.889,86.864,22.52341845]
[1770591248106,21.87067477,86.902,86.864,22.52341845]
[1770591248308,8.61839364,86.901,86.864,22.52341845]
[1770591248507,21.87067477,86.899,86.864,22.52341845]
[1770591248710,8.61839364,86.898,86.864,22.52341845]
[1770591248910,8.61839364,86.897,86.864,22.52341845]
[1770591249113,8.61839364,86.896,86.864,22.52341845]
[1770591249312,8.61839364,86.895,86.864,22.52341845]
[1770591249615,8.61839364,86.894,86.864,22.52341845]
[1770591249818,21.87067477,86.892,86.855,22.52341845]
[1770591250014,30.48906841,86.891,86.855,22.52341845]
[1770591250208,8.61839364,86.89,86.855,22.52341845]
[1770591250414,8.61839364,86.889,86.856,32.89231845]
[1770591250621,8.61839364,86.888,86.856,32.89231845]
[1770591250817,8.61839364,86.887,86.857,22.52341845]
[1770591251016,8.61839364,86.886,86.857,22.52341845]
[1770591251215,8.61839364,86.885,86.857,22.52341845]
[1770591251516,8.61839364,86.884,86.857,22.52341845]
[1770591251709,8.61839364,86.883,86.857,22.52341845]
[1770591251910,9.364e-05,86.882,86.857,22.52341845]
[1770591252117,21.87067477,86.891,86.857,22.52341845]
[1770591255921,21.87067477,86.891,86.86,23.06648802]
[1770591257010,22.5014477,86.904,86.86,23.06648802]
[1770591257210,22.5014477,86.904,86.864,23.06648802]
[1770591259719,10.76081331,86.91,86.866,23.06648802]
[1770591259924,10.76081331,86.919,86.871,23.06648802]
[1770591260124,10.76081331,86.922,86.871,23.06648802]
[1770591260517,22.5014477,86.921,86.871,23.06648802]
[1770591260713,22.5014477,86.921,86.875,23.06648802]
[1770591261618,22.5014477,86.921,86.88,23.06648802]
[1770591262726,22.5014477,86.921,86.882,23.06648802]
[1770591263825,22.5014477,86.919,86.882,23.06648802]
[1770591264022,8.50438194,86.918,86.882,23.06648802]
[1770591264222,8.50438194,86.917,86.882,23.06648802]
[1770591264421,8.50438194,86.916,86.882,23.06648802]
[1770591264619,8.50438194,86.915,86.882,23.06648802]
[1770591264819,8.50438194,86.914,86.882,23.06648802]
[1770591265024,8.50438194,86.913,86.882,23.06648802]
[1770591265224,8.50438194,86.912,86.882,23.06648802]
[1770591265424,8.50438194,86.911,86.882,23.06648802]
[1770591265627,8.50438194,86.91,86.882,23.06648802]
[1770591265824,22.5014477,86.919,86.882,23.06648802]
[1770591266018,31.00272336,86.918,86.882,23.06648802]
[1770591266223,8.50127566,86.917,86.882,23.06648802]
[1770591266423,8.50127566,86.916,86.882,23.06648802]
[1770591266623,8.50127566,86.915,86.882,23.06648802]
[1770591266923,8.50127566,86.914,86.882,23.06648802]
[1770591267230,8.50127566,86.913,86.882,23.06648802]
[1770591267431,8.50127566,86.912,86.882,23.06648802]
[1770591267731,8.50127566,86.911,86.882,23.06648802]
[1770591267922,8.50127566,86.91,86.882,23.06648802]
[1770591268123,22.5014477,86.918,86.882,23.06648802]
[1770591268323,8.49856494,86.917,86.882,23.06648802]
[1770591268618,8.49856494,86.916,86.882,23.06648802]
[1770591268827,8.49856494,86.915,86.882,23.06648802]
[1770591269020,8.49856494,86.914,86.882,23.06648802]
[1770591269223,8.49856494,86.913,86.882,23.06648802]
[1770591269428,8.49856494,86.912,86.882,23.06648802]
[1770591269630,8.49856494,86.911,86.882,23.06648802]
[1770591269821,8.49856494,86.91,86.882,23.06648802]
[1770591270033,22.5014477,86.918,86.882,23.06648802]
[1770591270326,8.49766662,86.917,86.882,23.06648802]
[1770591270628,8.49766662,86.916,86.882,23.06648802]
[1770591270832,8.49766662,86.915,86.882,23.06648802]
[1770591271031,8.49766662,86.914,86.882,23.06648802]
[1770591271227,8.49766662,86.913,86.882,23.06648802]
[1770591271432,8.49766662,86.912,86.882,23.06648802]
[1770591271734,8.49766662,86.911,86.882,23.06648802]
[1770591271935,8.49766662,86.91,86.882,23.06648802]
[1770591272132,22.5014477,86.917,86.882,23.06648802]
[1770591272334,8.49600168,86.916,86.882,23.06648802]
[1770591272631,8.49600168,86.915,86.882,23.06648802]
[1770591272826,8.49600168,86.914,86.882,23.06648802]
[1770591273030,8.49600168,86.913,86.882,23.06648802]
[1770591273232,8.49600168,86.912,86.882,23.06648802]
[1770591273432,8.49600168,86.911,86.882,23.06648802]
[1770591273627,8.49560726,86.91,86.882,23.06648802]
[1770591273827,22.5014477,86.917,86.882,23.06648802]
[1770591274124,8.4950029,86.916,86.882,23.06648802]
[1770591274433,8.4950029,86.915,86.882,23.06648802]
[1770591274633,8.4950029,86.914,86.882,23.06648802]
[1770591274833,8.4950029,86.913,86.882,23.06648802]
[1770591275028,8.4950029,86.912,86.882,23.06648802]
[1770591275234,8.4950029,86.911,86.882,23.06648802]
[1770591275437,8.4950029,86.91,86.882,23.06648802]
[1770591275633,8.4950029,86.909,86.882,23.06648802]
[1770591275933,8.4950029,86.908,86.882,23.06648802]
[1770591276134,8.4950029,86.907,86.882,23.06648802]
[1770591276334,8.4950029,86.906,86.882,23.06648802]
[1770591276633,22.5014477,86.917,86.882,23.06648802]
[1770591276830,8.49433238,86.916,86.882,23.06648802]
[1770591277029,8.49433238,86.915,86.882,23.06648802]
[1770591277230,8.49433238,86.914,86.882,23.06648802]
[1770591277429,8.49433238,86.913,86.882,23.06648802]
[1770591277636,8.49433238,86.912,86.882,23.06648802]
[1770591277834,8.49433238,86.911,86.882,23.06648802]
[1770591278036,22.5014477,86.917,86.882,23.06648802]
[1770591278234,8.49389557,86.916,86.882,23.06648802]
[1770591278433,8.49389557,86.915,86.882,23.06648802]
[1770591278638,8.49389557,86.914,86.882,23.06648802]
[1770591278934,8.49389557,86.913,86.882,23.06648802]
[1770591279137,22.5014477,86.917,86.882,23.06648802]
[1770591279336,8.49335761,86.916,86.882,23.06648802]
[1770591279639,8.49335761,86.915,86.882,23.06648802]
[1770591279838,8.49335761,86.914,86.882,23.06648802]
[1770591280038,8.49335761,86.913,86.882,23.06648802]
[1770591280232,22.5014477,86.917,86.86,3.3921083]
[1770591280437,22.5014477,86.909,86.854,23.06648802]
[1770591280639,22.5014477,86.907,86.854,23.06648802]
[1770591280837,22.5014477,86.905,86.854,23.06648802]
[1770591281233,30.99591585,86.904,86.854,23.06648802]
[1770591281439,22.5014477,86.904,86.854,23.06648802]
[1770591281738,22.5014477,86.904,86.861,10.3683]
[1770591281946,22.5014477,86.904,86.862,23.06648802]
[1770591288641,22.5014477,86.904,86.863,10.3681]
[1770591290342,22.79070525,86.902,86.863,10.3681]
[1770591290542,22.79070525,86.9,86.863,10.3681]
[1770591290745,22.79070525,86.898,86.863,10.3681]
[1770591294746,22.79070525,86.898,86.863,33.03862923]
[1770591297545,22.79070525,86.898,86.864,22.67052923]
[1770591298250,8.45685283,86.897,86.864,22.67052923]
[1770591298448,22.79070525,86.898,86.864,22.67052923]
[1770591298649,8.45696792,86.897,86.864,22.67052923]
[1770591298838,22.79070525,86.898,86.864,22.67052923]
[1770591299042,8.45696792,86.897,86.864,22.67052923]
[1770591299250,22.79070525,86.898,86.864,22.67052923]
[1770591299449,31.24861201,86.897,86.864,22.67052923]
[1770591299642,22.79070525,86.897,86.864,22.67052923]
[1770591300142,8.45885393,86.896,86.864,22.67052923]
[1770591300343,22.79070525,86.897,86.864,22.67052923]
[1770591300550,31.24961217,86.896,86.864,22.67052923]
[1770591300748,22.79070525,86.894,86.864,22.67052923]
[1770591300949,8.45965549,86.893,86.864,22.67052923]
[1770591301245,22.79070525,86.891,86.842,22.67052923]
[1770591301445,22.79070525,86.889,86.842,22.67052923]
[1770591301749,22.79070525,86.887,86.842,22.67052923]
[1770591301947,22.79070525,86.885,86.842,22.67052923]
[1770591302145,10.75487154,86.91,86.821,22.67052923]
[1770591302146,22.79070525,86.878,86.821,22.67052923]
[1770591302747,22.79070525,86.876,86.821,22.67052923]
[1770591303051,22.79070525,86.874,86.821,22.67052923]
[1770591303647,22.79070525,86.872,86.823,22.67052923]
[1770591303848,22.79070525,86.87,86.823,22.67052923]
[1770591308744,22.79070525,86.868,86.823,22.67052923]
[1770591309751,22.79070525,86.866,86.823,22.67052923]
[1770591310751,22.79070525,86.875,86.823,22.67052923]
[1770591310950,22.79070525,86.888,86.831,22.67052923]
[1770591311849,22.79070525,86.888,86.83,3.3921083]
[1770591311850,22.79070525,86.888,86.833,22.67052923]
[1770591314658,22.79070525,86.888,86.841,22.67052923]
[1770591315659,22.79070525,86.888,86.843,21.7007558]
[1770591315861,22.61990966,86.898,86.851,21.7007558]
[1770591316054,8.43214807,86.897,86.851,21.7007558]
[1770591316361,8.43214807,86.896,86.851,21.7007558]
[1770591316653,22.61990966,86.898,86.851,21.7007558]
[1770591316654,8.43214807,86.895,86.851,21.7007558]
[1770591316857,8.43214807,86.894,86.851,21.7007558]
[1770591317058,8.45845222,86.893,86.851,21.7007558]
[1770591317254,22.61990966,86.898,86.851,21.7007558]
[1770591326561,22.61990966,86.898,86.858,10.3687]
[1770591326763,23.43333797,86.907,86.859,21.99207873]
[1770591326966,23.43333797,86.905,86.859,21.99207873]
[1770591327159,8.46597059,86.904,86.859,21.99207873]
[1770591327363,23.43333797,86.905,86.861,21.99207873]
[1770591327565,8.46589329,86.904,86.861,21.99207873]
[1770591327767,23.43333797,86.917,86.861,21.99207873]
[1770591327967,10.3616,86.918,86.862,21.99207873]
[1770591327968,23.43333797,86.915,86.862,21.99207873]
[1770591328166,31.89862264,86.914,86.862,21.99207873]
[1770591328369,23.43333797,86.914,86.862,21.99207873]
[1770591329169,23.43333797,86.914,86.865,21.99207873]
[1770591330766,23.43333797,86.914,86.869,21.99207873]
[1770591334675,23.43333797,86.914,86.871,21.99207873]
[1770591336678,23.43333797,86.914,86.875,21.99207873]
[1770591340079,23.43333797,86.914,86.876,10.3665]
[1770591340280,23.43333797,86.914,86.877,21.99207873]
[1770591348085,3.39280636,86.94,86.88,22.23265778]
[1770591348287,445.55059328,86.948,86.88,25.62546414]
[1770591348486,8.44106334,86.947,86.88,25.62546414]
[1770591348687,8.44106334,86.946,86.88,25.62546414]
[1770591348900,8.44106334,86.945,86.88,25.62546414]
[1770591349192,8.44106334,86.944,86.88,25.62546414]
[1770591349393,445.55059328,86.948,86.88,25.62546414]
[1770591349592,8.44073562,86.947,86.88,25.62546414]
[1770591349793,8.44073562,86.946,86.888,10.3651]
[1770591349995,8.44073562,86.945,86.891,22.23265778]
[1770591350194,5.67085628,86.943,86.891,22.23265778]
[1770591352100,5.67085628,86.943,86.894,22.23265778]
[1770591353302,6.15594998,86.941,86.894,22.23265778]
[1770591355403,8.45008193,86.94,86.896,22.23265778]
[1770591355594,6.15594998,86.941,86.896,22.23265778]
[1770591356800,6.15594998,86.941,86.898,22.23265778]
[1770591357001,3.39280636,86.95,86.901,22.23265778]
[1770591357002,6.1972797,86.95,86.901,22.23265778]
[1770591357195,6.1972797,86.969,86.91,3.39280636]
[1770591357400,6.1972797,86.967,86.911,22.23265778]
[1770591357599,3.39280636,86.97,86.911,22.23265778]
[1770591357600,6.20100324,86.965,86.911,22.23265778]
[1770591357799,6.20100324,86.963,86.911,22.23265778]
[1770591357996,6.20100324,86.961,86.911,22.23265778]
[1770591358602,6.20100324,86.961,86.914,22.23265778]
[1770591366005,6.20100324,86.961,86.916,22.23265778]
[1770591369806,6.20100324,86.961,86.861,176.0]
[1770591369807,7.34897268,86.979,86.921,22.23265778]
[1770591371715,7.34897268,86.979,86.934,22.23265778]
[1770591372612,7.34897268,86.979,86.937,22.23265778]
[1770591373815,7.34897268,86.979,86.944,22.23265778]
[1770591374011,3.39280636,86.99,86.944,22.23265778]
[1770591374219,7.53215651,86.989,86.944,22.23265778]
[1770591374611,7.53215651,86.989,86.946,22.23265778]
[1770591375517,7.53215651,86.989,86.948,22.51848841]
[1770591376719,7.53215651,86.989,86.953,21.69819017]
[1770591377619,7.81102738,86.999,86.953,21.69819017]
[1770591377822,7.81102738,86.999,86.956,21.69819017]
[1770591378321,7.81102738,86.999,86.959,21.69819017]
[1770591378910,7.81102738,86.999,86.963,21.69819017]
[1770591381017,7.81102738,86.999,86.967,21.69819017]
[1770591382821,7.81102738,86.999,86.971,10.3552]
[1770591383527,8.08249507,87.009,86.972,21.69819017]
[1770591387224,3.38526396,87.05,86.99,21.69819017]
[1770591387431,3.38526396,87.06,87.001,21.69819017]
[1770591387624,3.38526396,87.05,87.001,21.69819017]
[1770591388227,3.38526396,87.04,87.001,21.69819017]
[1770591388733,10.3453,87.055,87.001,21.69819017]
[1770591388734,3.38526396,87.05,87.001,21.69819017]
[1770591388932,1.99951161,87.107,87.001,21.69819017]
[1770591388933,3.38526396,87.06,87.001,21.69819017]
[1770591389130,3.38526396,87.05,87.001,21.69819017]
[1770591389324,9.25413709,87.05,87.003,21.69819017]
[1770591389530,3.38526396,87.06,87.003,21.69819017]
[1770591389829,3.38526396,87.06,87.006,10.351]
[1770591390033,5.87209532,87.059,87.007,21.69819017]
[1770591391227,5.38764521,87.07,87.016,10.3499]
[1770591391430,5.38764521,87.07,86.962,161.0986]
[1770591391431,5.38764521,87.081,87.021,21.69819017]
[1770591391937,5.39048067,87.095,87.031,21.69819017]
[1770591392437,5.39048067,87.095,87.041,21.69819017]
[1770591395034,5.39048067,87.095,87.043,21.98993809]
[1770591395834,3.38526396,87.1,87.051,21.98885982]
[1770591396039,4.62475493,87.099,87.051,21.98885982]
[1770591398028,4.62475493,87.099,87.059,21.69819017]
[1770591403041,3.38526396,87.08,87.036,21.7950581]
[1770591403344,3.38526396,87.07,87.036,21.7950581]
[1770591404134,8.64175536,87.07,87.036,21.7950581]
[1770591404340,5.2564914,87.069,87.027,10.3485]
[1770591404547,5.2564914,87.069,87.024,21.79398775]
[1770591404845,5.2564914,87.069,87.036,10.3475]
[1770591408646,5.2564914,87.069,87.034,23.53984235]
[1770591411845,5.2564914,87.069,87.015,23.53984235]
[1770591412845,10.3419,87.084,87.015,23.53984235]
[1770591412846,5.32428634,87.059,87.015,23.53984235]
[1770591413748,5.32428634,87.059,87.016,10.3499]
[1770591414360,5.32428634,87.059,87.015,23.53984235]
[1770591414962,5.32428634,87.059,87.015,33.88984235]
[1770591418855,5.32428634,87.059,87.018,10.3496]
[1770591419767,5.32428634,87.059,87.019,23.53984235]
[1770591424264,6.86328676,87.057,87.019,23.53984235]
[1770591425371,14.61534383,87.056,87.019,23.53984235]
[1770591425574,6.30098794,87.056,87.019,23.53984235]
[1770591426167,8.31727158,87.055,87.019,23.53984235]
[1770591426367,6.30098794,87.056,87.019,23.53984235]
[1770591426368,8.31727158,87.054,87.019,23.53984235]
[1770591426674,6.30098794,87.056,87.019,23.53984235]
[1770591426875,8.31799871,87.055,87.019,23.53984235]
[1770591427076,8.31799871,87.054,87.019,23.53984235]
[1770591427275,8.32123143,87.053,87.019,23.53984235]
[1770591427472,6.30098794,87.056,87.019,23.53984235]
[1770591427677,8.32188807,87.055,87.019,23.53984235]
[1770591427873,8.32188807,87.054,87.019,23.53984235]
[1770591428065,8.32188807,87.053,87.019,23.53984235]
[1770591428270,8.32559518,87.052,87.019,23.53984235]
[1770591428469,8.32559518,87.051,87.019,23.53984235]
[1770591428673,6.30098794,87.056,87.019,23.53984235]
[1770591428974,8.32608634,87.055,87.019,23.53984235]
[1770591429175,8.32608634,87.054,87.019,23.53984235]
[1770591429374,8.32608634,87.053,87.019,23.53984235]
[1770591429574,6.30098794,87.056,87.019,23.53984235]
[1770591429775,8.32877198,87.055,87.019,23.53984235]
[1770591429975,6.30098794,87.056,87.019,23.53984235]
[1770591430180,8.32884987,87.055,87.019,23.53984235]
[1770591430485,8.32884987,87.054,87.019,23.53984235]
[1770591430685,8.32884987,87.053,87.019,23.53984235]
[1770591430873,6.30098794,87.056,87.019,23.53984235]
[1770591431072,8.3326542,87.055,87.019,23.53984235]
[1770591431279,8.3326542,87.054,87.019,23.53984235]
[1770591431480,6.76270221,87.077,87.022,23.53984235]
[1770591431675,10.3415,87.087,87.031,23.53984235]
[1770591431676,6.76322332,87.075,87.031,23.53984235]
[1770591431877,8.33582336,87.074,87.031,23.53984235]
[1770591432178,8.33582336,87.073,87.031,23.53984235]
[1770591432374,6.76322332,87.085,87.031,23.53984235]
[1770591432375,8.33582336,87.072,87.031,23.53984235]
[1770591432583,6.76322332,87.085,87.031,23.53984235]
[1770591432774,6.92538696,87.083,87.031,23.53984235]
[1770591432976,8.33571583,87.082,87.031,23.53984235]
[1770591433177,8.33571583,87.081,87.031,23.53984235]
[1770591433379,8.33571583,87.08,87.031,23.53984235]
[1770591433578,8.33571583,87.079,87.031,23.53984235]
[1770591433777,8.33571583,87.078,87.031,23.53984235]
[1770591433981,8.33571583,87.077,87.031,23.53984235]
[1770591434177,8.33571583,87.076,87.031,23.53984235]
[1770591434380,8.33571583,87.075,87.031,23.53984235]
[1770591434579,8.33571583,87.074,87.031,23.53984235]
[1770591434780,6.92538696,87.083,87.031,23.53984235]
[1770591434781,8.33571583,87.073,87.031,23.53984235]
[1770591434974,8.33571583,87.072,87.031,23.53984235]
[1770591435174,8.33571583,87.071,87.031,23.53984235]
[1770591435375,6.92538696,87.083,87.031,23.53984235]
[1770591435577,8.3370599,87.082,87.031,23.53984235]
[1770591435778,7.04729172,87.08,87.031,23.53984235]
[1770591435978,8.3370599,87.079,87.031,23.53984235]
[1770591436281,8.3370599,87.078,87.031,23.53984235]
[1770591436477,8.3370599,87.077,87.031,23.53984235]
[1770591436685,8.3370599,87.076,87.031,23.53984235]
[1770591436883,8.3370599,87.075,87.031,23.53984235]
[1770591437081,8.3370599,87.074,87.031,23.53984235]
[1770591437285,8.3370599,87.073,87.031,23.53984235]
[1770591437482,8.3370599,87.072,87.031,23.53984235]
[1770591437681,8.3370599,87.071,87.031,23.53984235]
[1770591437882,8.3370599,87.07,87.031,23.53984235]
[1770591438082,8.3370599,87.069,87.031,23.53984235]
[1770591438275,7.04729172,87.08,87.031,23.53984235]
[1770591438480,8.43807759,87.079,87.031,23.53984235]
[1770591438679,8.43807759,87.078,87.031,23.53984235]
[1770591438880,8.43807759,87.077,87.031,23.53984235]
[1770591439075,8.43807759,87.076,87.031,23.53984235]
[1770591439280,8.43807759,87.075,87.031,23.53984235]
[1770591439481,8.43807759,87.074,87.031,23.53984235]
[1770591439779,8.43807759,87.073,87.031,23.53984235]
[1770591439980,8.43807759,87.072,87.031,23.53984235]
[1770591440180,8.43807759,87.071,87.031,23.53984235]
[1770591440485,8.43807759,87.07,87.031,23.53984235]
[1770591440685,8.43807759,87.069,87.031,23.53984235]
[1770591440886,8.43807759,87.068,87.031,23.53984235]
[1770591441089,7.04729172,87.08,87.031,23.53984235]
[1770591441387,8.44013023,87.079,87.031,23.53984235]
[1770591441585,8.44013023,87.078,87.031,23.53984235]
[1770591441888,8.44013023,87.077,87.031,23.53984235]
[1770591442088,8.44013023,87.076,87.031,23.53984235]
[1770591442281,8.44013023,87.075,87.031,23.53984235]
[1770591442485,8.44013023,87.074,87.031,23.53984235]
[1770591442682,8.44013023,87.073,87.031,23.53984235]
[1770591442880,8.44013023,87.072,87.031,23.53984235]
[1770591443086,8.44013023,87.071,87.031,23.53984235]
[1770591443287,8.44013023,87.07,87.031,23.53984235]
[1770591443590,8.44013023,87.069,87.031,23.53984235]
[1770591443789,8.44013023,87.068,87.031,23.53984235]
[1770591443992,17.3633579,87.087,87.031,23.53984235]
[1770591444292,15.46981644,87.086,87.031,23.53984235]
[1770591444488,8.44347856,87.085,87.031,23.53984235]
[1770591444689,8.44347856,87.084,87.031,23.53984235]
[1770591444890,8.44347856,87.083,87.031,23.53984235]
[1770591445087,8.44347856,87.082,87.031,23.53984235]
[1770591445289,8.44347856,87.081,87.031,23.53984235]
[1770591445598,11.82164602,87.08,87.031,23.53984235]
[1770591445889,8.44347856,87.079,87.031,23.53984235]
[1770591446089,8.44347856,87.078,87.031,23.53984235]
[1770591446282,8.44347856,87.077,87.031,23.53984235]
[1770591446482,8.44347856,87.076,87.031,23.53984235]
[1770591446681,8.44347856,87.075,87.031,23.53984235]
[1770591446882,8.44347856,87.074,87.031,23.53984235]
[1770591447082,8.44347856,87.073,87.031,23.53984235]
[1770591447292,8.44347856,87.072,87.032,10.3479]
[1770591447492,8.44347856,87.071,87.033,23.41761423]
[1770591447793,10.75487154,87.092,87.041,23.41761423]
[1770591447991,10.75487154,87.093,87.041,23.41761423]
[1770591448286,10.75487154,87.106,87.042,23.41761423]
[1770591448487,26.45367607,87.106,87.042,23.41761423]
[1770591448895,15.65917282,87.105,87.042,23.41761423]
[1770591449682,15.65917282,87.105,87.046,23.41761423]
[1770591450889,15.65917282,87.105,87.052,23.41761423]
[1770591451692,15.65917282,87.105,87.056,23.41761423]
[1770591451898,15.60521139,87.113,87.056,23.41761423]
[1770591452394,3.37816746,87.1,87.056,23.41761423]
[1770591452989,15.6273793,87.109,87.056,23.41761423]
[1770591459001,15.7862,87.107,87.056,23.41761423]
[1770591459795,15.80916482,87.105,87.056,23.41761423]
[1770591459999,8.39250842,87.104,87.056,23.41761423]
[1770591460194,8.39250842,87.103,87.056,23.41761423]
[1770591460400,8.39250842,87.102,87.057,23.41761423]
[1770591460601,15.80916482,87.105,87.057,23.41761423]
[1770591460801,8.39106871,87.104,87.057,23.41761423]
[1770591461103,8.39106871,87.103,87.057,23.41761423]
[1770591461400,8.39106871,87.102,87.063,23.41761423]
[1770591461597,15.78243855,87.111,87.063,23.41761423]
[1770591461802,8.39007663,87.11,87.063,23.41761423]
[1770591462002,8.39007663,87.109,87.063,23.41761423]
[1770591462203,15.78243855,87.111,87.067,23.41761423]
[1770591464302,3.37816746,87.11,87.067,23.41761423]
[1770591464507,24.02605575,87.109,87.067,23.41761423]
[1770591464704,8.38873135,87.108,87.067,23.41761423]
[1770591464910,15.6373244,87.109,87.067,23.41761423]
[1770591465109,8.38873135,87.108,87.067,23.41761423]
[1770591465310,15.6373244,87.109,87.067,23.41761423]
[1770591465510,8.38840343,87.108,87.067,23.41761423]
[1770591465710,15.6373244,87.109,87.067,23.41761423]
[1770591465908,8.38840343,87.108,87.067,23.41761423]
[1770591466109,15.6373244,87.109,87.067,23.41761423]
[1770591466310,8.38840343,87.108,87.067,23.41761423]
[1770591466610,15.6373244,87.109,87.067,23.41761423]
[1770591466810,8.38390787,87.108,87.067,23.41761423]
[1770591467009,15.6373244,87.109,87.067,23.41761423]
[1770591467210,8.38390787,87.108,87.067,23.41761423]
[1770591467406,15.6373244,87.109,87.067,23.41761423]
[1770591467612,8.38391425,87.108,87.067,23.41761423]
[1770591467813,15.6373244,87.109,87.067,23.41761423]
[1770591468715,8.38436464,87.108,87.067,23.41761423]
[1770591468917,15.6373244,87.109,87.067,23.41761423]
[1770591469117,8.38436464,87.108,87.067,23.41761423]
[1770591469311,15.6373244,87.109,87.067,23.41761423]
[1770591469708,8.38524537,87.108,87.067,23.41761423]
[1770591469909,15.6373244,87.109,87.067,23.41761423]
[1770591470112,8.38524537,87.108,87.067,23.41761423]
[1770591470314,8.38639733,87.107,87.067,23.41761423]
[1770591470509,15.6373244,87.109,87.067,23.41761423]
[1770591470815,8.38639733,87.108,87.067,23.41761423]
[1770591471117,8.38639733,87.107,87.067,23.41761423]
[1770591471316,15.6373244,87.109,87.067,23.41761423]
[1770591471518,8.38791902,87.108,87.067,23.41761423]
[1770591471725,8.38791902,87.107,87.067,23.41761423]
[1770591472018,15.6373244,87.109,87.067,23.41761423]
[1770591472318,8.38791902,87.108,87.067,23.41761423]
[1770591472517,8.38791902,87.107,87.067,23.41761423]
[1770591472723,8.38791902,87.106,87.067,23.41761423]
[1770591473020,8.38791902,87.105,87.067,23.41761423]
[1770591473216,8.38791902,87.104,87.067,23.41761423]
[1770591473516,8.38791902,87.103,87.067,23.41761423]
[1770591473717,15.6373244,87.109,87.067,23.41761423]
[1770591473914,8.39170461,87.108,87.067,23.41761423]
[1770591474124,8.39170461,87.107,87.067,23.41761423]
[1770591474316,8.39170461,87.106,87.067,23.41761423]
[1770591474514,15.6373244,87.109,87.067,23.41761423]
[1770591474515,8.39170461,87.105,87.067,23.41761423]
[1770591474714,8.39170461,87.104,87.067,23.41761423]
[1770591474915,8.39170461,87.103,87.067,23.41761423]
[1770591475120,8.39170461,87.102,87.067,23.41761423]
[1770591475323,15.6373244,87.109,87.067,23.41761423]
[1770591475522,8.39623209,87.108,87.067,23.41761423]
[1770591475815,8.39623209,87.107,87.067,23.41761423]
[1770591476022,8.39623209,87.106,87.067,23.41761423]
[1770591476220,8.39623209,87.105,87.067,23.41761423]
[1770591476417,8.39623209,87.104,87.067,23.41761423]
[1770591476621,8.39623209,87.103,87.067,23.41761423]
[1770591476921,8.39623209,87.102,87.067,23.41761423]
[1770591477120,24.36274009,87.101,87.067,23.41761423]
[1770591477318,8.39623209,87.1,87.067,23.41761423]
[1770591477513,13.71586746,87.12,87.067,23.41761423]
[1770591477713,10.3382,87.115,87.067,23.41761423]
[1770591477918,15.9682847,87.113,87.067,23.41761423]
[1770591478219,15.98500185,87.111,87.067,23.41761423]
[1770591478417,15.98500185,87.109,87.067,23.41761423]
[1770591478622,8.39934246,87.11,87.067,23.41761423]
[1770591478623,16.21470235,87.107,87.067,23.41761423]
[1770591478814,16.21470235,87.105,87.067,23.41761423]
[1770591479012,16.21470235,87.103,87.067,23.41761423]
[1770591479216,24.63065763,87.102,87.067,23.41761423]
[1770591479519,8.39934246,87.101,87.067,23.41761423]
[1770591479719,8.39934246,87.1,87.067,23.41761423]
[1770591480023,8.39934246,87.099,87.067,23.41761423]
[1770591480224,8.39934246,87.098,87.067,23.41761423]
[1770591480526,8.39934246,87.097,87.067,23.41761423]
[1770591480722,8.39934246,87.096,87.067,23.41761423]